[Event "Titled Tuesday Blitz August 16 Early 2022"]
[White "Golubev, Mikhail"]
[Black "Mahdavi, Reza"]
[WhiteFideId "14100983"]
[BlackFideId "12595926"]
[WhiteElo "2374"]
[BlackElo "2226"]
[Result "1-0"]
[Round "05"]
[TimeControl "180+2"]
[Date "2022.08.18"]
[WhiteClock "0:00:00"]
[BlackClock "0:00:00"]

1. e4 {[%clk 0:00:00]}  Nc6 {[%clk 0:00:00]} 2. Nf3 {[%clk 0:00:00]}  g6 {[%clk 0:00:00]} 3. d4 {[%clk 0:00:00]}  Bg7 {[%clk 0:00:00]} 4. d5 {[%clk 0:00:00]}  Ne5 {[%clk 0:00:00]} 5. Nxe5 {[%clk 0:00:00]}  Bxe5 {[%clk 0:00:00]} 6. f4 {[%clk 0:00:00]}  Bg7 {[%clk 0:00:00]} 7. Be2 {[%clk 0:00:00]}  d6 {[%clk 0:00:00]} 8. O-O {[%clk 0:00:00]}  Nf6 {[%clk 0:00:00]} 9. Nc3 {[%clk 0:00:00]}  c6 {[%clk 0:00:00]} 10. dxc6 {[%clk 0:00:00]}  bxc6 {[%clk 0:00:00]} 11. e5 {[%clk 0:00:00]}  Nd7 {[%clk 0:00:00]} 12. exd6 {[%clk 0:00:00]}  O-O {[%clk 0:00:00]} 13. Bf3 {[%clk 0:00:00]}  Rb8 {[%clk 0:00:00]} 14. Kh1 {[%clk 0:00:00]}  Bb7 {[%clk 0:00:00]} 15. Ne4 {[%clk 0:00:00]}  e5 {[%clk 0:00:00]} 16. c3 {[%clk 0:00:00]}  h6 {[%clk 0:00:00]} 17. fxe5 {[%clk 0:00:00]}  Nxe5 {[%clk 0:00:00]} 18. Nc5 {[%clk 0:00:00]}  Nxf3 {[%clk 0:00:00]} 19. Rxf3 {[%clk 0:00:00]}  Ba8 {[%clk 0:00:00]} 20. b3 {[%clk 0:00:00]}  Rb5 {[%clk 0:00:00]} 21. b4 {[%clk 0:00:00]}  a5 {[%clk 0:00:00]} 22. a3 {[%clk 0:00:00]}  Kh7 {[%clk 0:00:00]} 23. Rb1 {[%clk 0:00:00]}  f5 {[%clk 0:00:00]} 24. Ne6 {[%clk 0:00:00]}  Qd7 {[%clk 0:00:00]} 25. Nxf8+ {[%clk 0:00:00]}  Bxf8 {[%clk 0:00:00]} 26. c4 {[%clk 0:00:00]}  Re5 {[%clk 0:00:00]} 27. c5 {[%clk 0:00:00]}  axb4 {[%clk 0:00:00]} 28. axb4 {[%clk 0:00:00]}  Bb7 {[%clk 0:00:00]} 29. Re3 {[%clk 0:00:00]}  Bg7 {[%clk 0:00:00]} 30. Rxe5 {[%clk 0:00:00]}  Bxe5 {[%clk 0:00:00]} 31. Bb2 {[%clk 0:00:00]}  Bxb2 {[%clk 0:00:00]} 32. Rxb2 {[%clk 0:00:00]}  Ba6 {[%clk 0:00:00]} 33. Qe1 {[%clk 0:00:00]}  Kg7 {[%clk 0:00:00]} 34. Qe7+ {[%clk 0:00:00]}  Qxe7 {[%clk 0:00:00]} 35. dxe7 {[%clk 0:00:00]}  Kf7 {[%clk 0:00:00]} 36. Ra2 {[%clk 0:00:00]}  Bb5 {[%clk 0:00:00]} 37. Ra7 {[%clk 0:00:00]}  g5 {[%clk 0:00:00]} 38. g3 {[%clk 0:00:00]}  Bc4 {[%clk 0:00:00]} 39. Kg1 {[%clk 0:00:00]}  Be6 {[%clk 0:00:00]} 40. Kf2 {[%clk 0:00:00]}  Ke8 {[%clk 0:00:00]} 41. Ke3 {[%clk 0:00:00]}  Bd7 {[%clk 0:00:00]} 42. Kd4 {[%clk 0:00:00]}  f4 {[%clk 0:00:00]} 43. gxf4 {[%clk 0:00:00]}  gxf4 {[%clk 0:00:00]} 44. Ke4 {[%clk 0:00:00]}  Kxe7 {[%clk 0:00:00]} 1-0


[Site "https://www.chess.com"]

[Event "Titled Tuesday Blitz August 16 Early 2022"]
[White "Grandelius, Nils"]
[Black "Salem, A.R. Saleh"]
[WhiteFideId "1710400"]
[BlackFideId "9301348"]
[WhiteElo "2617"]
[BlackElo "2674"]
[Result "0-1"]
[Round "05"]
[TimeControl "180+1"]
[Date "2022.08.16"]
[WhiteClock "0:00:04"]
[BlackClock "0:00:16"]

1. Nf3 {[%clk 0:03:00]}  d5 {[%clk 0:02:59]} 2. e3 {[%clk 0:02:59]}  c5 {[%clk 0:02:59]} 3. d4 {[%clk 0:02:58]}  Nf6 {[%clk 0:02:59]} 4. Nbd2 {[%clk 0:02:57]}  cxd4 {[%clk 0:02:58]} 5. exd4 {[%clk 0:02:57]}  Nc6 {[%clk 0:02:58]} 6. Bb5 {[%clk 0:02:57]}  Bf5 {[%clk 0:02:46]} 7. Ne5 {[%clk 0:02:44]}  Rc8 {[%clk 0:02:43]} 8. c3 {[%clk 0:02:23]}  Qb6 {[%clk 0:02:30]} 9. a4 {[%clk 0:01:55]}  a6 {[%clk 0:02:25]} 10. Bxc6+ {[%clk 0:01:50]}  bxc6 {[%clk 0:02:26]} 11. a5 {[%clk 0:01:43]}  Qb5 {[%clk 0:01:31]} 12. b3 {[%clk 0:01:02]}  e6 {[%clk 0:01:19]} 13. c4 {[%clk 0:00:56]}  Qb7 {[%clk 0:01:05]} 14. O-O {[%clk 0:00:53]}  Bb4 {[%clk 0:01:01]} 15. Ndf3 {[%clk 0:00:53]}  h6 {[%clk 0:00:51]} 16. Ba3 {[%clk 0:00:48]}  Bxa3 {[%clk 0:00:49]} 17. Rxa3 {[%clk 0:00:49]}  O-O {[%clk 0:00:49]} 18. Qe2 {[%clk 0:00:38]}  Ne4 {[%clk 0:00:49]} 19. h3 {[%clk 0:00:36]}  Rfd8 {[%clk 0:00:45]} 20. Rc1 {[%clk 0:00:17]}  c5 {[%clk 0:00:44]} 21. cxd5 {[%clk 0:00:16]}  cxd4 {[%clk 0:00:36]} 22. Rxc8 {[%clk 0:00:15]}  Rxc8 {[%clk 0:00:35]} 23. dxe6 {[%clk 0:00:12]}  Rc1+ {[%clk 0:00:26]} 24. Kh2 {[%clk 0:00:12]}  fxe6 {[%clk 0:00:24]} 25. Nxd4 {[%clk 0:00:10]}  Qc7 {[%clk 0:00:20]} 26. f4 {[%clk 0:00:10]}  Qc5 {[%clk 0:00:19]} 27. Ra4 {[%clk 0:00:10]}  Nc3 {[%clk 0:00:20]} 28. Qd2 {[%clk 0:00:06]}  Nxa4 {[%clk 0:00:20]} 29. bxa4 {[%clk 0:00:07]}  Ra1 {[%clk 0:00:17]} 30. Nb3 {[%clk 0:00:07]}  Qg1+ {[%clk 0:00:17]} 31. Kg3 {[%clk 0:00:06]}  Rd1 {[%clk 0:00:17]} 32. Qb4 {[%clk 0:00:05]}  Kh7 {[%clk 0:00:17]} 33. Nd4 {[%clk 0:00:04]}  Rxd4 {[%clk 0:00:16]} 0-1


[Site "https://www.chess.com"]

[Event "Titled Tuesday Blitz August 16 Early 2022"]
[White "Harsh Suresh"]
[Black "Yurovskykh, Oleksandr"]
[WhiteFideId "45018464"]
[BlackFideId "14134020"]
[WhiteElo "2070"]
[BlackElo "2292"]
[Result "1-0"]
[Round "05"]
[TimeControl "180+2"]
[Date "2022.08.18"]
[WhiteClock "0:00:00"]
[BlackClock "0:00:00"]

1. d4 {[%clk 0:00:00]}  d5 {[%clk 0:00:00]} 2. Nf3 {[%clk 0:00:00]}  Nf6 {[%clk 0:00:00]} 3. Bf4 {[%clk 0:00:00]}  c5 {[%clk 0:00:00]} 4. c3 {[%clk 0:00:00]}  Nc6 {[%clk 0:00:00]} 5. e3 {[%clk 0:00:00]}  Qb6 {[%clk 0:00:00]} 6. Qc2 {[%clk 0:00:00]}  Bg4 {[%clk 0:00:00]} 7. Nbd2 {[%clk 0:00:00]}  e6 {[%clk 0:00:00]} 8. Be2 {[%clk 0:00:00]}  Be7 {[%clk 0:00:00]} 9. O-O {[%clk 0:00:00]}  O-O {[%clk 0:00:00]} 10. h3 {[%clk 0:00:00]}  Bf5 {[%clk 0:00:00]} 11. Qb3 {[%clk 0:00:00]}  c4 {[%clk 0:00:00]} 12. Qxb6 {[%clk 0:00:00]}  axb6 {[%clk 0:00:00]} 13. Nh4 {[%clk 0:00:00]}  b5 {[%clk 0:00:00]} 14. Nxf5 {[%clk 0:00:00]}  exf5 {[%clk 0:00:00]} 15. a3 {[%clk 0:00:00]}  Rfd8 {[%clk 0:00:00]} 16. Rfb1 {[%clk 0:00:00]}  g6 {[%clk 0:00:00]} 17. b3 {[%clk 0:00:00]}  Ra7 {[%clk 0:00:00]} 18. bxc4 {[%clk 0:00:00]}  bxc4 {[%clk 0:00:00]} 19. a4 {[%clk 0:00:00]}  Rda8 {[%clk 0:00:00]} 20. g4 {[%clk 0:00:00]}  fxg4 {[%clk 0:00:00]} 21. hxg4 {[%clk 0:00:00]}  Nd8 {[%clk 0:00:00]} 22. Bf3 {[%clk 0:00:00]}  Ne6 {[%clk 0:00:00]} 23. g5 {[%clk 0:00:00]}  Nxf4 {[%clk 0:00:00]} 24. gxf6 {[%clk 0:00:00]}  Bxf6 {[%clk 0:00:00]} 25. exf4 {[%clk 0:00:00]}  Rxa4 {[%clk 0:00:00]} 26. Rxa4 {[%clk 0:00:00]}  Rxa4 {[%clk 0:00:00]} 27. Bxd5 {[%clk 0:00:00]}  Ra3 {[%clk 0:00:00]} 28. Ne4 {[%clk 0:00:00]}  Be7 {[%clk 0:00:00]} 29. Rxb7 {[%clk 0:00:00]}  Kf8 {[%clk 0:00:00]} 30. Bxc4 {[%clk 0:00:00]}  h5 {[%clk 0:00:00]} 31. d5 {[%clk 0:00:00]}  Ra1+ {[%clk 0:00:00]} 32. Kg2 {[%clk 0:00:00]}  Rd1 {[%clk 0:00:00]} 33. d6 {[%clk 0:00:00]}  Bxd6 {[%clk 0:00:00]} 34. Rxf7+ {[%clk 0:00:00]}  Ke8 {[%clk 0:00:00]} 35. Nf6+ {[%clk 0:00:00]}  Kd8 {[%clk 0:00:00]} 36. Rd7+ {[%clk 0:00:00]}  Kc8 {[%clk 0:00:00]} 37. Ba6+ {[%clk 0:00:00]}  Kb8 {[%clk 0:00:00]} 38. Ne4 {[%clk 0:00:00]} 1-0


[Site "https://www.chess.com"]

[Event "Titled Tuesday Blitz August 16 Early 2022"]
[White "Ibarra Jerez, Jose Carlos"]
[Black "Janaszak, Dawid"]
[WhiteFideId "2226332"]
[BlackFideId "1119206"]
[WhiteElo "2628"]
[BlackElo "2165"]
[Result "1-0"]
[Round "05"]
[TimeControl "180+1"]
[Date "2022.08.16"]
[WhiteClock "0:01:15"]
[BlackClock "0:00:48"]

1. e4 {[%clk 0:03:00]}  c5 {[%clk 0:02:59]} 2. Nc3 {[%clk 0:03:00]}  Nc6 {[%clk 0:02:59]} 3. Nge2 {[%clk 0:02:59]}  g6 {[%clk 0:02:56]} 4. d4 {[%clk 0:02:58]}  cxd4 {[%clk 0:02:56]} 5. Nxd4 {[%clk 0:02:59]}  Bg7 {[%clk 0:02:56]} 6. Be3 {[%clk 0:02:59]}  Nf6 {[%clk 0:02:56]} 7. Bc4 {[%clk 0:02:59]}  O-O {[%clk 0:02:57]} 8. Bb3 {[%clk 0:02:59]}  Re8 {[%clk 0:02:57]} 9. f3 {[%clk 0:02:59]}  e6 {[%clk 0:02:57]} 10. f4 {[%clk 0:02:59]}  Nd5 {[%clk 0:02:57]} 11. exd5 {[%clk 0:02:54]}  exd5 {[%clk 0:02:57]} 12. O-O {[%clk 0:02:48]}  Rxe3 {[%clk 0:02:53]} 13. Ndb5 {[%clk 0:02:49]}  a6 {[%clk 0:01:59]} 14. Nxd5 {[%clk 0:02:13]}  Rxb3 {[%clk 0:01:56]} 15. axb3 {[%clk 0:02:13]}  Bxb2 {[%clk 0:01:45]} 16. Nd6 {[%clk 0:02:07]}  Ne7 {[%clk 0:01:17]} 17. Rb1 {[%clk 0:01:50]}  Bg7 {[%clk 0:01:07]} 18. Nxe7+ {[%clk 0:01:47]}  Qxe7 {[%clk 0:01:07]} 19. Re1 {[%clk 0:01:48]}  Qf6 {[%clk 0:01:07]} 20. Re8+ {[%clk 0:01:45]}  Bf8 {[%clk 0:01:08]} 21. Nxc8 {[%clk 0:01:40]}  Kg7 {[%clk 0:00:56]} 22. Qxd7 {[%clk 0:01:37]}  Qxf4 {[%clk 0:00:51]} 23. Rxf8 {[%clk 0:01:17]}  Kxf8 {[%clk 0:00:48]} 24. Rf1 {[%clk 0:01:15]} 1-0


[Site "https://www.chess.com"]

[Event "Titled Tuesday Blitz August 16 Early 2022"]
[White "Iljin, Timofey"]
[Black "Aradhya, Garg"]
[WhiteFideId "14110180"]
[BlackFideId "25006746"]
[WhiteElo "2404"]
[BlackElo "2203"]
[Result "1/2-1/2"]
[Round "05"]
[TimeControl "180+1"]
[Date "2022.08.16"]
[WhiteClock "0:02:38"]
[BlackClock "0:02:26"]

1. d4 {[%clk 0:02:50]}  d5 {[%clk 0:02:58]} 2. c4 {[%clk 0:02:49]}  c6 {[%clk 0:02:59]} 3. Nc3 {[%clk 0:02:49]}  Nf6 {[%clk 0:02:58]} 4. Nf3 {[%clk 0:02:50]}  dxc4 {[%clk 0:02:57]} 5. a4 {[%clk 0:02:49]}  Bf5 {[%clk 0:02:58]} 6. Nh4 {[%clk 0:02:48]}  e6 {[%clk 0:02:57]} 7. Nxf5 {[%clk 0:02:48]}  exf5 {[%clk 0:02:57]} 8. e3 {[%clk 0:02:49]}  Bb4 {[%clk 0:02:56]} 9. Bxc4 {[%clk 0:02:50]}  O-O {[%clk 0:02:56]} 10. O-O {[%clk 0:02:48]}  a5 {[%clk 0:02:55]} 11. Qf3 {[%clk 0:02:47]}  g6 {[%clk 0:02:55]} 12. h3 {[%clk 0:02:45]}  h5 {[%clk 0:02:45]} 13. Rd1 {[%clk 0:02:45]}  Nbd7 {[%clk 0:02:44]} 14. Bd2 {[%clk 0:02:45]}  Nb6 {[%clk 0:02:43]} 15. Bf1 {[%clk 0:02:44]}  Re8 {[%clk 0:02:42]} 16. Rac1 {[%clk 0:02:43]}  Qe7 {[%clk 0:02:36]} 17. b3 {[%clk 0:02:42]}  Rad8 {[%clk 0:02:35]} 18. Be1 {[%clk 0:02:38]}  Ba3 {[%clk 0:02:25]} 19. Rb1 {[%clk 0:02:37]}  Bb4 {[%clk 0:02:25]} 20. Rbc1 {[%clk 0:02:38]}  Ba3 {[%clk 0:02:25]} 21. Rb1 {[%clk 0:02:38]}  Bb4 {[%clk 0:02:26]} 22. Rbc1 {[%clk 0:02:38]} 1/2-1/2


[Site "https://www.chess.com"]

[Event "Titled Tuesday Blitz August 16 Early 2022"]
[White "Karimov, Alisher"]
[Black "Csonka, Balazs"]
[WhiteFideId "14700280"]
[BlackFideId "742910"]
[WhiteElo "2186"]
[BlackElo "2404"]
[Result "0-1"]
[Round "05"]
[TimeControl "180+2"]
[Date "2022.08.18"]
[WhiteClock "0:00:00"]
[BlackClock "0:00:00"]

1. d4 {[%clk 0:00:00]}  d5 {[%clk 0:00:00]} 2. c4 {[%clk 0:00:00]}  dxc4 {[%clk 0:00:00]} 3. Nf3 {[%clk 0:00:00]}  a6 {[%clk 0:00:00]} 4. e3 {[%clk 0:00:00]}  b5 {[%clk 0:00:00]} 5. a4 {[%clk 0:00:00]}  Bb7 {[%clk 0:00:00]} 6. b3 {[%clk 0:00:00]}  e6 {[%clk 0:00:00]} 7. bxc4 {[%clk 0:00:00]}  bxc4 {[%clk 0:00:00]} 8. Bxc4 {[%clk 0:00:00]}  Nf6 {[%clk 0:00:00]} 9. O-O {[%clk 0:00:00]}  Nbd7 {[%clk 0:00:00]} 10. a5 {[%clk 0:00:00]}  c5 {[%clk 0:00:00]} 11. Ba3 {[%clk 0:00:00]}  Be7 {[%clk 0:00:00]} 12. Nbd2 {[%clk 0:00:00]}  O-O {[%clk 0:00:00]} 13. Qe2 {[%clk 0:00:00]}  Ra7 {[%clk 0:00:00]} 14. Rfb1 {[%clk 0:00:00]}  Qa8 {[%clk 0:00:00]} 15. Nb3 {[%clk 0:00:00]}  Rc8 {[%clk 0:00:00]} 16. Ne1 {[%clk 0:00:00]}  Nd5 {[%clk 0:00:00]} 17. Rc1 {[%clk 0:00:00]}  cxd4 {[%clk 0:00:00]} 18. Bxd5 {[%clk 0:00:00]}  Bxd5 {[%clk 0:00:00]} 19. Bxe7 {[%clk 0:00:00]}  Bxb3 {[%clk 0:00:00]} 20. exd4 {[%clk 0:00:00]}  Bd5 {[%clk 0:00:00]} 21. Qg4 {[%clk 0:00:00]}  Rac7 {[%clk 0:00:00]} 22. Rxc7 {[%clk 0:00:00]}  Rxc7 {[%clk 0:00:00]} 23. Nd3 {[%clk 0:00:00]}  Be4 {[%clk 0:00:00]} 24. Nf4 {[%clk 0:00:00]}  Qc8 {[%clk 0:00:00]} 25. h3 {[%clk 0:00:00]}  Bf5 {[%clk 0:00:00]} 26. Qg3 {[%clk 0:00:00]}  Nf8 {[%clk 0:00:00]} 27. Bf6 {[%clk 0:00:00]}  Ng6 {[%clk 0:00:00]} 28. Be5 {[%clk 0:00:00]}  Nxe5 {[%clk 0:00:00]} 29. dxe5 {[%clk 0:00:00]}  Rc1+ {[%clk 0:00:00]} 30. Rxc1 {[%clk 0:00:00]}  Qxc1+ {[%clk 0:00:00]} 31. Kh2 {[%clk 0:00:00]}  Qc7 {[%clk 0:00:00]} 32. Qe3 {[%clk 0:00:00]}  Qxa5 {[%clk 0:00:00]} 33. g4 {[%clk 0:00:00]}  Bg6 {[%clk 0:00:00]} 34. Qd4 {[%clk 0:00:00]}  Qc7 {[%clk 0:00:00]} 35. h4 {[%clk 0:00:00]}  h6 {[%clk 0:00:00]} 36. Nxg6 {[%clk 0:00:00]}  fxg6 {[%clk 0:00:00]} 37. Kg3 {[%clk 0:00:00]}  Kf7 {[%clk 0:00:00]} 38. f4 {[%clk 0:00:00]}  a5 {[%clk 0:00:00]} 39. h5 {[%clk 0:00:00]}  gxh5 {[%clk 0:00:00]} 40. gxh5 {[%clk 0:00:00]}  Qb7 {[%clk 0:00:00]} 41. Qd3 {[%clk 0:00:00]}  a4 {[%clk 0:00:00]} 42. Qg6+ {[%clk 0:00:00]}  Kf8 {[%clk 0:00:00]} 43. Kh4 {[%clk 0:00:00]}  Qe7+ {[%clk 0:00:00]} 44. Kg3 {[%clk 0:00:00]}  Qb7 {[%clk 0:00:00]} 45. Kh4 {[%clk 0:00:00]}  a3 {[%clk 0:00:00]} 46. Qxe6 {[%clk 0:00:00]}  Qe7+ {[%clk 0:00:00]} 47. Qxe7+ {[%clk 0:00:00]}  Kxe7 {[%clk 0:00:00]} 0-1


[Site "https://www.chess.com"]

[Event "Titled Tuesday Blitz August 16 Early 2022"]
[White "Kavyev, Ruslan"]
[Black "Broca Jimenez, Fernando"]
[WhiteFideId "34110981"]
[BlackFideId "5104742"]
[WhiteElo "2180"]
[BlackElo "2062"]
[Result "1-0"]
[Round "05"]
[TimeControl "180+2"]
[Date "2022.08.18"]
[WhiteClock "0:00:00"]
[BlackClock "0:00:00"]

1. d4 {[%clk 0:00:00]}  Nf6 {[%clk 0:00:00]} 2. c4 {[%clk 0:00:00]}  e6 {[%clk 0:00:00]} 3. g3 {[%clk 0:00:00]}  d5 {[%clk 0:00:00]} 4. Bg2 {[%clk 0:00:00]}  Be7 {[%clk 0:00:00]} 5. Nf3 {[%clk 0:00:00]}  O-O {[%clk 0:00:00]} 6. O-O {[%clk 0:00:00]}  c6 {[%clk 0:00:00]} 7. Qc2 {[%clk 0:00:00]}  Nbd7 {[%clk 0:00:00]} 8. Nbd2 {[%clk 0:00:00]}  Re8 {[%clk 0:00:00]} 9. e4 {[%clk 0:00:00]}  dxe4 {[%clk 0:00:00]} 10. Nxe4 {[%clk 0:00:00]}  Nxe4 {[%clk 0:00:00]} 11. Qxe4 {[%clk 0:00:00]}  Nf6 {[%clk 0:00:00]} 12. Qc2 {[%clk 0:00:00]}  c5 {[%clk 0:00:00]} 13. Rd1 {[%clk 0:00:00]}  cxd4 {[%clk 0:00:00]} 14. Nxd4 {[%clk 0:00:00]}  Qc7 {[%clk 0:00:00]} 15. Nb5 {[%clk 0:00:00]}  Qb8 {[%clk 0:00:00]} 16. c5 {[%clk 0:00:00]}  Bd7 {[%clk 0:00:00]} 17. Nd6 {[%clk 0:00:00]}  Bxd6 {[%clk 0:00:00]} 18. cxd6 {[%clk 0:00:00]}  Rc8 {[%clk 0:00:00]} 19. Qb3 {[%clk 0:00:00]}  Bc6 {[%clk 0:00:00]} 20. Bf4 {[%clk 0:00:00]}  Nd7 {[%clk 0:00:00]} 21. Rac1 {[%clk 0:00:00]}  Bxg2 {[%clk 0:00:00]} 22. Kxg2 {[%clk 0:00:00]}  e5 {[%clk 0:00:00]} 23. Rxc8+ {[%clk 0:00:00]}  Qxc8 {[%clk 0:00:00]} 24. Be3 {[%clk 0:00:00]}  Qc6+ {[%clk 0:00:00]} 25. Kg1 {[%clk 0:00:00]}  a6 {[%clk 0:00:00]} 26. Rc1 {[%clk 0:00:00]}  Qxd6 {[%clk 0:00:00]} 27. Qxb7 {[%clk 0:00:00]}  Rb8 {[%clk 0:00:00]} 28. Rc8+ {[%clk 0:00:00]}  Rxc8 {[%clk 0:00:00]} 29. Qxc8+ {[%clk 0:00:00]}  Nf8 {[%clk 0:00:00]} 30. Bc5 {[%clk 0:00:00]}  Qd1+ {[%clk 0:00:00]} 31. Kg2 {[%clk 0:00:00]}  Qd5+ {[%clk 0:00:00]} 32. f3 {[%clk 0:00:00]}  Qd2+ {[%clk 0:00:00]} 33. Bf2 {[%clk 0:00:00]}  Qd7 {[%clk 0:00:00]} 34. Qxa6 {[%clk 0:00:00]}  Ne6 {[%clk 0:00:00]} 35. Qa8+ {[%clk 0:00:00]}  Qd8 {[%clk 0:00:00]} 36. Qxd8+ {[%clk 0:00:00]}  Nxd8 {[%clk 0:00:00]} 37. a4 {[%clk 0:00:00]}  Kf8 {[%clk 0:00:00]} 38. a5 {[%clk 0:00:00]}  Ke8 {[%clk 0:00:00]} 39. a6 {[%clk 0:00:00]}  Kd7 {[%clk 0:00:00]} 40. a7 {[%clk 0:00:00]} 1-0


[Site "https://www.chess.com"]

[Event "Titled Tuesday Blitz August 16 Early 2022"]
[White "Kezin, Roman"]
[Black "Vrbljanac, Aleksandar"]
[WhiteFideId "24124621"]
[BlackFideId "932817"]
[WhiteElo "2551"]
[BlackElo "2309"]
[Result "1-0"]
[Round "05"]
[TimeControl "180+1"]
[Date "2022.08.16"]
[WhiteClock "0:00:53"]
[BlackClock "0:00:12"]

1. Nc3 {[%clk 0:03:00]}  e5 {[%clk 0:02:57]} 2. Nf3 {[%clk 0:02:56]}  Nc6 {[%clk 0:02:55]} 3. e4 {[%clk 0:02:56]}  Nf6 {[%clk 0:02:52]} 4. Bc4 {[%clk 0:02:57]}  Nxe4 {[%clk 0:02:51]} 5. O-O {[%clk 0:02:57]}  Nxc3 {[%clk 0:02:47]} 6. dxc3 {[%clk 0:02:58]}  Be7 {[%clk 0:02:47]} 7. Qd5 {[%clk 0:02:58]}  O-O {[%clk 0:02:47]} 8. Nxe5 {[%clk 0:02:59]}  Nxe5 {[%clk 0:02:46]} 9. Qxe5 {[%clk 0:03:00]}  Bf6 {[%clk 0:02:46]} 10. Qg3 {[%clk 0:02:59]}  d5 {[%clk 0:02:41]} 11. Bd3 {[%clk 0:02:57]}  Re8 {[%clk 0:02:31]} 12. Bf4 {[%clk 0:02:56]}  Bh4 {[%clk 0:02:14]} 13. Bxc7 {[%clk 0:02:52]}  Bxg3 {[%clk 0:01:58]} 14. Bxd8 {[%clk 0:02:52]}  Bxh2+ {[%clk 0:01:59]} 15. Kxh2 {[%clk 0:02:52]}  Rxd8 {[%clk 0:01:59]} 16. Rad1 {[%clk 0:02:46]}  Be6 {[%clk 0:01:58]} 17. Be2 {[%clk 0:02:42]}  Rd7 {[%clk 0:01:44]} 18. Rd4 {[%clk 0:02:41]}  Rad8 {[%clk 0:01:36]} 19. Rfd1 {[%clk 0:02:40]}  h6 {[%clk 0:01:22]} 20. Kg3 {[%clk 0:02:33]}  g5 {[%clk 0:01:17]} 21. Bb5 {[%clk 0:02:24]}  Rd6 {[%clk 0:01:05]} 22. Ba4 {[%clk 0:02:15]}  Kf8 {[%clk 0:00:41]} 23. f4 {[%clk 0:02:10]}  Ke7 {[%clk 0:00:37]} 24. Rh1 {[%clk 0:02:09]}  Bf5 {[%clk 0:00:30]} 25. Bb3 {[%clk 0:02:09]}  b5 {[%clk 0:00:25]} 26. a4 {[%clk 0:02:04]}  a6 {[%clk 0:00:26]} 27. Kf2 {[%clk 0:02:01]}  Kf8 {[%clk 0:00:19]} 28. axb5 {[%clk 0:01:55]}  axb5 {[%clk 0:00:19]} 29. Rb4 {[%clk 0:01:52]}  Rb6 {[%clk 0:00:17]} 30. Rd1 {[%clk 0:01:51]}  Be6 {[%clk 0:00:15]} 31. Ra1 {[%clk 0:01:45]}  Rd7 {[%clk 0:00:11]} 32. Ra5 {[%clk 0:01:42]}  Rdb7 {[%clk 0:00:09]} 33. Rd4 {[%clk 0:01:41]}  Rd6 {[%clk 0:00:07]} 34. g4 {[%clk 0:01:31]}  gxf4 {[%clk 0:00:06]} 35. Rxf4 {[%clk 0:01:29]}  Kg7 {[%clk 0:00:07]} 36. Kg3 {[%clk 0:01:28]}  Kg6 {[%clk 0:00:07]} 37. Rb4 {[%clk 0:01:27]}  Rdb6 {[%clk 0:00:06]} 38. Ra8 {[%clk 0:01:26]}  Rb8 {[%clk 0:00:06]} 39. Ra1 {[%clk 0:01:25]}  Rg8 {[%clk 0:00:05]} 40. Rd1 {[%clk 0:01:23]}  Kf6 {[%clk 0:00:06]} 41. Bxd5 {[%clk 0:01:23]}  h5 {[%clk 0:00:05]} 42. Bxe6 {[%clk 0:01:22]}  Rxe6 {[%clk 0:00:05]} 43. Rf1+ {[%clk 0:01:22]}  Ke7 {[%clk 0:00:05]} 44. Rff4 {[%clk 0:01:18]}  hxg4 {[%clk 0:00:06]} 45. Rxg4 {[%clk 0:01:16]}  Rxg4+ {[%clk 0:00:06]} 46. Kxg4 {[%clk 0:01:16]}  Re2 {[%clk 0:00:07]} 47. Rxb5 {[%clk 0:01:16]}  Rxc2 {[%clk 0:00:08]} 48. Kf4 {[%clk 0:01:15]}  Ke6 {[%clk 0:00:08]} 49. Rb6+ {[%clk 0:01:15]}  Kd5 {[%clk 0:00:08]} 50. Ke3 {[%clk 0:01:15]}  f5 {[%clk 0:00:07]} 51. Rb5+ {[%clk 0:01:12]}  Kc4 {[%clk 0:00:06]} 52. Rb4+ {[%clk 0:01:10]}  Kd5 {[%clk 0:00:07]} 53. Kd3 {[%clk 0:01:10]}  Rh2 {[%clk 0:00:07]} 54. Rb5+ {[%clk 0:01:11]}  Ke6 {[%clk 0:00:07]} 55. b4 {[%clk 0:01:10]}  Rh3+ {[%clk 0:00:07]} 56. Kd4 {[%clk 0:01:10]}  Rh4+ {[%clk 0:00:07]} 57. Kc5 {[%clk 0:01:10]}  f4 {[%clk 0:00:08]} 58. Rb8 {[%clk 0:01:10]}  Rh5+ {[%clk 0:00:08]} 59. Kd4 {[%clk 0:01:07]}  Rf5 {[%clk 0:00:08]} 60. Re8+ {[%clk 0:01:03]}  Kd7 {[%clk 0:00:07]} 61. Re2 {[%clk 0:01:01]}  Kd6 {[%clk 0:00:06]} 62. Rf2 {[%clk 0:00:59]}  Rf6 {[%clk 0:00:06]} 63. Ke4 {[%clk 0:00:56]}  Re6+ {[%clk 0:00:06]} 64. Kxf4 {[%clk 0:00:55]}  Kd5 {[%clk 0:00:07]} 65. Kf5 {[%clk 0:00:53]}  Re8 {[%clk 0:00:07]} 66. Rf4 {[%clk 0:00:52]}  Rc8 {[%clk 0:00:04]} 67. Rd4+ {[%clk 0:00:51]}  Kc6 {[%clk 0:00:04]} 68. Rc4+ {[%clk 0:00:51]}  Kd7 {[%clk 0:00:05]} 69. Rxc8 {[%clk 0:00:51]}  Kxc8 {[%clk 0:00:06]} 70. Ke5 {[%clk 0:00:52]}  Kb7 {[%clk 0:00:06]} 71. Kd5 {[%clk 0:00:53]}  Kb6 {[%clk 0:00:07]} 72. c4 {[%clk 0:00:53]}  Ka6 {[%clk 0:00:08]} 73. Kc6 {[%clk 0:00:53]}  Ka7 {[%clk 0:00:08]} 74. b5 {[%clk 0:00:53]}  Kb8 {[%clk 0:00:09]} 75. c5 {[%clk 0:00:52]}  Ka8 {[%clk 0:00:10]} 76. Kc7 {[%clk 0:00:51]}  Ka7 {[%clk 0:00:10]} 77. b6+ {[%clk 0:00:52]}  Ka6 {[%clk 0:00:10]} 78. b7 {[%clk 0:00:52]}  Ka5 {[%clk 0:00:10]} 79. c6 {[%clk 0:00:53]}  Ka4 {[%clk 0:00:11]} 80. b8=Q {[%clk 0:00:54]}  Ka5 {[%clk 0:00:12]} 81. Qb3 {[%clk 0:00:52]}  Ka6 {[%clk 0:00:12]} 82. Qa4# {[%clk 0:00:53]} 1-0


[Site "https://www.chess.com"]